fUST/lending_fUST_20250407
["ID","MTS","AMOUNT","RATE_DAILY","PERIOD"]
[357274100,1743971438716,-160.0,0.00026747,2]
[357274101,1743971438726,-6584.99315984,0.00027,2]
[357274102,1743971438736,-313.86122,0.00027,120]
[357274103,1743971438746,-155.53857392,0.00027147,2]
[357274104,1743971438755,-1279.24175414,0.00027148,2]
[357274105,1743971438765,-199.25,0.00027237,3]
[357274106,1743971438775,-34223.36670832,0.00027237,3]
[357274107,1743971438785,-71178.76250822,0.00027237,3]
[357274108,1743971438794,-82785.6105545,0.00027237,2]
[357274109,1743971438803,-2509.84529223,0.00027237,2]
[357274110,1743971438813,-55190.4070363,0.00027238,2]
[357274111,1743971438822,-1673.23019482,0.00027238,2]
[357274112,1743971438832,-200.0,0.00027241,2]
[357274113,1743971438843,-200.0,0.00027247,2]
[357274114,1743971438853,-27595.2035182,0.00027247,2]
[357274115,1743971438863,-836.61509741,0.00027247,2]
[357274116,1743971438873,-419.28457398,0.00027247,3]
[357274117,1743971438882,-12525.30748765,0.00027247,3]
[357274118,1743971438892,-82785.6105545,0.00027248,2]
[357274119,1743971438901,-5856.30568187,0.00027248,2]
[357274120,1743971438911,-370000.0,0.00027258,2]
[357274121,1743971438922,-836.61509741,0.00027263,2]
[357274122,1743971438931,-500.0,0.00027273,2]
[357274123,1743971438941,-500.0,0.00027273,2]
[357274124,1743971438952,-500.0,0.00027273,2]
[357274125,1743971438961,-500.0,0.00027273,2]
[357274126,1743971438973,-500.0,0.00027273,2]
[357274127,1743971438983,-500.0,0.00027273,2]
[357274128,1743971438992,-183.67877057,0.00027273,2]
[357274129,1743971439002,-500.0,0.00027273,2]
[357274130,1743971439012,-500.0,0.00027273,2]
[357274131,1743971439022,-502.21148346,0.00027273,2]
[357274132,1743971439032,-478.84499412,0.00027273,2]
[357274133,1743971439042,-500.0,0.00027273,2]
[357274134,1743971439051,-500.0,0.00027273,2]
[357274135,1743971439062,-543.94367697,0.00027273,2]
[357274136,1743971439072,-500.0,0.00027273,2]
[357274137,1743971439082,-500.0,0.00027273,2]
[357274138,1743971439091,-281.57643986,0.00027273,2]
[357274139,1743971439100,-500.0,0.00027273,2]
[357274140,1743971439110,-500.0,0.00027273,2]
[357274141,1743971439120,-500.0,0.00027273,2]
[357274142,1743971439130,-500.0,0.00027273,2]
[357274143,1743971439140,-500.0,0.00027273,2]
[357274144,1743971439150,-500.0,0.00027273,2]
[357274145,1743971439161,-500.0,0.00027273,2]
[357274146,1743971439171,-500.0,0.00027273,2]
[357274147,1743971439181,-500.0,0.00027273,2]
[357274148,1743971439190,-500.0,0.00027273,2]
[357274149,1743971439200,-160.0,0.00027288,2]
[357274150,1743971439211,-12525.30748765,0.00027288,2]
[357274151,1743971439224,-160.0,0.00027288,2]
[357274152,1743971439235,-3705.72,0.000273,2]
[357274153,1743971439244,-719.782386,0.000273,2]
[357274154,1743971439255,-157.079544,0.00027316,2]
[357274155,1743971439265,-157.079544,0.00027321,2]
[357274156,1743971439275,-836.61509741,0.00027338,2]
[357274157,1743971439285,-3951.37805852,0.00027348,7]
[357274158,1743971439295,-277.387109,0.00027397,120]
[357274159,1743971439307,-500.0,0.00027397,5]
[357274160,1743971439318,-7442.29189872,0.00027397,5]
[357274161,1743971439328,-500.0,0.000274,2]
[357274162,1743971439338,-280.217614,0.000275,2]
[357274163,1743971439348,-500.0,0.000275,2]
[357274164,1743971439358,-500.0,0.000276,2]
[357274165,1743971439369,-500.0,0.000277,2]
[357274166,1743971439379,-155.53857392,0.00027731,2]
[357274167,1743971439389,-500.0,0.000278,2]
[357274168,1743971439400,-332.08,0.00027816,3]
[357274169,1743971439410,-500.0,0.000279,2]
[357274170,1743971439420,-500.0,0.00028,2]
[357274171,1743971439430,-3951.37805852,0.00028072,7]
[357274172,1743971439439,-500.0,0.000281,2]
[357274173,1743971439449,-4200.0,0.00028125,2]
[357274174,1743971439459,-4200.0,0.00028159,2]
[357274175,1743971439470,-500.0,0.000282,2]
[357274176,1743971439479,-587.0,0.00028223,2]
[357274177,1743971439489,-500.0,0.000283,2]
[357274178,1743971439499,-155.53857392,0.00028316,2]
[357274179,1743971439509,-500.0,0.000284,2]
[357274180,1743971439518,-168.0,0.000285,2]
[357274181,1743971439529,-168.0,0.000285,2]
[357274182,1743971439539,-168.0,0.000285,2]
[357274183,1743971439549,-168.0,0.000285,2]
[357274184,1743971439559,-168.0,0.000285,2]
[357274185,1743971439569,-168.0,0.000285,2]
[357274186,1743971439579,-168.0,0.000285,2]
[357274187,1743971439589,-168.0,0.000285,2]
[357274188,1743971439598,-168.0,0.000285,2]
[357274189,1743971439609,-168.0,0.000285,2]
[357274190,1743971439618,-168.0,0.000285,2]
[357274191,1743971439628,-168.0,0.000285,2]
[357274192,1743971439638,-168.0,0.000285,2]
[357274193,1743971439647,-168.0,0.000285,2]
[357274194,1743971439657,-168.0,0.000285,2]
[357274195,1743971439668,-168.0,0.000285,2]
[357274196,1743971439679,-168.0,0.000285,2]
[357274197,1743971439688,-168.0,0.000285,2]
[357274198,1743971439698,-168.0,0.000285,2]
[357274199,1743971439708,-168.0,0.000285,2]
[357274200,1743971439718,-168.0,0.000285,2]
[357274201,1743971439728,-168.0,0.000285,2]
[357274202,1743971439738,-168.0,0.000285,2]
[357274203,1743971439749,-168.0,0.000285,2]
[357274204,1743971439759,-168.0,0.000285,2]
[357274205,1743971439769,-168.0,0.000285,2]
[357274206,1743971439780,-168.0,0.000285,2]
[357274207,1743971439789,-168.0,0.000285,2]
[357274208,1743971439799,-168.0,0.000285,2]
[357274209,1743971439810,-168.0,0.000285,2]
[357274210,1743971439820,-168.0,0.000285,2]
[357274211,1743971439830,-168.0,0.000285,2]
[357274212,1743971439840,-168.0,0.000285,2]
[357274213,1743971439850,-168.0,0.000285,2]
[357274214,1743971439860,-168.0,0.000285,2]
[357274215,1743971439870,-168.0,0.000285,2]
[357274216,1743971439881,-168.0,0.000285,2]
[357274218,1743971439891,-168.0,0.000285,2]
[357274219,1743971439900,-168.0,0.000285,2]
[357274220,1743971439910,-168.0,0.000285,2]
[357274221,1743971439920,-168.0,0.000285,2]
[357274222,1743971439929,-168.0,0.000285,2]
[357274223,1743971439939,-168.0,0.000285,2]
[357274224,1743971439949,-168.0,0.000285,2]
[357274225,1743971439959,-168.0,0.000285,2]
[357274226,1743971439969,-168.0,0.000285,2]
[357274227,1743971439979,-168.0,0.000285,2]
[357274228,1743971439988,-168.0,0.000285,2]
[357274229,1743971439998,-168.0,0.000285,2]
[357274230,1743971440007,-168.0,0.000285,2]
[357274231,1743971440017,-168.0,0.000285,2]
[357274232,1743971440026,-168.0,0.000285,2]
[357274233,1743971440036,-168.0,0.000285,2]
[357274234,1743971440045,-168.0,0.000285,2]
[357274235,1743971440055,-168.0,0.000285,2]
[357274236,1743971440064,-168.0,0.000285,2]
[357274237,1743971440074,-168.0,0.000285,2]
[357274238,1743971440083,-168.0,0.000285,2]
[357274239,1743971440093,-256.0,0.000285,2]
[357274240,1743971440103,-500.0,0.000285,2]
[357274241,1743971440112,-500.0,0.00028526,2]
[357274242,1743971440123,-500.0,0.000286,2]
[357274243,1743971440132,-151.0,0.000286,10]
[357274244,1743971440142,-207.4,0.0002861,2]
[357274245,1743971440152,-200.0,0.00028617,2]
[357274246,1743971440162,-500.0,0.000287,2]
[357274247,1743971440171,-4200.0,0.00028776,2]
[357274249,1743971440181,-3951.37805852,0.00028797,8]
[357274250,1743971440192,-500.0,0.000288,2]
[357274251,1743971440201,-151.0,0.000288,16]
[357274252,1743971440211,-500.0,0.000289,2]
[357274253,1743971440227,-155.53857392,0.000289,2]
[357274254,1743971440236,-836.61509741,0.00028954,2]
[357274255,1743971440246,-12500.0,0.00028964,3]
[357274256,1743971440255,-12500.0,0.00028972,3]
[357274257,1743971440266,-500.0,0.00028973,5]
[357274258,1743971440276,-500.0,0.00028973,5]
[357274259,1743971440286,-500.0,0.00028973,5]
[357274260,1743971440296,-500.0,0.00028973,5]
[357274261,1743971440305,-836.61509741,0.0002898,2]
[357274262,1743971440315,-12500.0,0.00028981,3]
[357274263,1743971440325,-849.23283574,0.0002899,3]
[357274264,1743971440334,-12500.0,0.0002899,3]
[357274265,1743971440344,-2509.84529223,0.0002899,2]
[357274266,1743971440353,-494.40644258,0.00029,7]
[357274267,1743971440363,-494.40644258,0.00029,7]
[357274268,1743971440373,-97762.58382454,0.00029,7]
[357274269,1743971440383,-97762.58382454,0.00029,7]
[357274270,1743971440392,-7238.92257891,0.00029,7]
[357274271,1743971440401,-7238.92257891,0.00029,7]
[357274272,1743971440410,-500.0,0.00029,2]
[357274273,1743971440421,-97762.58382455,0.00029,7]
[357274274,1743971440430,-97762.58382455,0.00029,7]
[357274275,1743971440440,-12525.30748765,0.00029,7]
[357274276,1743971440450,-351.02618742,0.00029159,2]
[357274277,1743971440460,-3951.37805852,0.00029521,8]
[357274278,1743971440469,-500.0,0.000297,5]
[357274279,1743971440479,-500.0,0.000297,5]
[357274280,1743971440489,-3537.44352993,0.000299,120]
[357274281,1743971440499,-215.0738,0.00029979,2]
[357274282,1743971440508,-200.0,0.00029987,2]
[357274283,1743971440518,-4245.77194529,0.0003,4]
[357274284,1743971440528,-6999.79,0.0003,60]
[357274285,1743971440537,-933.06745951,0.0003,2]
[357274286,1743971440547,-252.0,0.0003,2]
[357274287,1743971440556,-3951.37805852,0.00030245,9]
[357274288,1743971440566,-823.0,0.00030607,2]
[357274289,1743971440575,-1000.0,0.00030952,2]
[357274290,1743971440584,-500.0,0.00030952,5]
[357274291,1743971440594,-1000.0,0.00030952,5]
[357274292,1743971440604,-578.09641296,0.00030952,5]
[357274293,1743971440614,-509.20542168,0.00030952,5]
[357274294,1743971440623,-3951.37805852,0.00030969,9]
[357274295,1743971440633,-223.0315306,0.00031348,2]
[357274296,1743971440643,-200.0,0.00031356,2]
[357274297,1743971440652,-155.19,0.000315,31]
[357274298,1743971440662,-155.19,0.000315,31]
[357274300,1743971440671,-155.19,0.000315,31]
[357274301,1743971440681,-155.19,0.000315,31]
[357274302,1743971440692,-155.19,0.000315,31]
[357274303,1743971440702,-155.19,0.000315,31]
[357274304,1743971440712,-3951.37805852,0.00031693,10]
[357274305,1743971440721,-4200.0,0.00031951,7]
[357274306,1743971440731,-1000.0,0.00031952,5]
[357274307,1743971440740,-1000.0,0.00031952,5]
[357274308,1743971440749,-1000.0,0.00031952,5]
[357274309,1743971440759,-1000.0,0.00031952,5]
[357274310,1743971440927,-1000.0,0.00031952,5]
[357274311,1743971440938,-500.0,0.00031952,2]
[357274312,1743971440948,-500.0,0.00031952,5]
[357274313,1743971440958,-1000.0,0.00031952,5]
[357274314,1743971440967,-4200.0,0.00032158,7]
[357274315,1743971440978,-3951.37805852,0.00032417,10]
[357274316,1743971440988,-231.28369723,0.00032717,2]
[357274317,1743971440998,-200.0,0.00032726,2]
[357274318,1743971441007,-500.0,0.00032752,5]
[357274319,1743971441017,-500.0,0.00032752,5]
[357274320,1743971441027,-537.90377505,0.00032752,5]
[357274321,1743971441037,-1000.0,0.00032752,5]
[357274322,1743971441046,-1000.0,0.00032752,5]
[357274323,1743971441057,-1000.0,0.00032752,5]
[357274324,1743971441066,-1000.0,0.00032752,5]
[357274325,1743971441076,-1000.0,0.00032752,5]
[357274326,1743971441086,-1000.0,0.00032752,5]
[357274327,1743971441096,-1000.0,0.00032752,5]
[357274328,1743971441105,-611.34722706,0.00032752,5]
[357274329,1743971441114,-1000.0,0.00032752,5]
[357274330,1743971441124,-1000.0,0.00032752,5]
[357274331,1743971441134,-1000.0,0.00032752,5]
[357274332,1743971441144,-500.0,0.00032752,5]
[357274333,1743971441154,-500.71988164,0.00032752,5]
[357274334,1743971441164,-1000.0,0.00032752,5]
[357274335,1743971441174,-1000.0,0.00032877,5]
[357274336,1743971441184,-201.75659287,0.00033049,10]
[357274337,1743971441194,-3951.37805852,0.00033141,11]
[357274338,1743971441204,-1152.0,0.00033191,2]
[357274339,1743971441214,-3951.37805852,0.00033866,11]
[357274340,1743971441227,-427.28313656,0.00034024,7]
[357274341,1743971441237,-239.84119403,0.00034086,2]
[357274342,1743971441247,-312.59,0.00034096,2]
[357274343,1743971441257,-500.0,0.00034189,7]
[357274344,1743971441267,-500.0,0.00034452,5]
[357274345,1743971441278,-500.0,0.00034452,5]
[357274346,1743971441288,-1000.0,0.00034452,5]
[357274347,1743971441298,-3951.37805852,0.0003459,12]
[357274348,1743971441308,-18042.43982678,0.0003499,30]
[357274349,1743971441318,-2000.0,0.00035,15]
[357274350,1743971441328,-2000.0,0.00035,15]
[357274351,1743971441337,-360.0,0.00035,15]
[357274352,1743971441347,-2192.11877745,0.00035,120]
[357274353,1743971441356,-880.5,0.00035013,30]
[357274354,1743971441366,-797.62855318,0.00035179,5]
[357274355,1743971441376,-3951.37805852,0.00035314,12]
[357274356,1743971441386,-248.71531821,0.00035455,2]
[357274357,1743971441395,-500.0,0.00035525,7]
[357274358,1743971441405,-1000.0,0.0003589,2]
[357274359,1743971441414,-448.0,0.00035994,2]
[357274360,1743971441424,-178.18700459,0.00036,30]
[357274361,1743971441434,-3951.37805852,0.00036038,13]
[357274362,1743971441444,-160.0,0.0003619,3]
[357274363,1743971441453,-151.0,0.000362,14]
[357274364,1743971441463,-151.0,0.000362,14]
[357274365,1743971441474,-155.19,0.000363,31]
[357274366,1743971441485,-155.19,0.000363,31]
[357274367,1743971441495,-155.19,0.000363,31]
[357274368,1743971441505,-155.19,0.000363,31]
[357274369,1743971441514,-155.19,0.000363,31]
[357274370,1743971441524,-155.19,0.000363,31]
[357274371,1743971441533,-4200.0,0.0003646,7]
[357274372,1743971441542,-1279.24175413,0.00036669,2]
[357274373,1743971441551,-3951.37805852,0.00036762,13]
[357274374,1743971441561,-257.91778498,0.00036824,2]
[357274375,1743971441569,-4200.0,0.00036832,7]
[357274376,1743971441578,-2254.0,0.00037287,2]
[357274377,1743971441588,-401.0,0.00037287,2]
[357274378,1743971441596,-151.1,0.00037287,2]
[357274379,1743971441605,-3951.37805852,0.00037486,13]
[357274380,1743971441614,-657.617,0.00037897,50]
[357274381,1743971441624,-170.91,0.00037897,50]
[357274382,1743971441633,-420.47256183,0.00037927,6]
[357274383,1743971441642,-500.0,0.00037973,5]
[357274384,1743971441651,-500.0,0.00037973,5]
[357274385,1743971441661,-300.0,0.00037973,5]
[357274386,1743971441670,-114694.84084963,0.00038,10]
[357274387,1743971441679,-151.0,0.00038,14]
[357274388,1743971441688,-2200.0,0.00038027,7]
[357274389,1743971441697,-267.46074303,0.00038193,2]
[357274390,1743971441706,-4200.0,0.00038207,7]
[357274391,1743971441715,-3951.37805852,0.0003821,14]
[357274392,1743971441724,-1500.0,0.00038356,5]
[357274393,1743971441733,-500.0,0.00038462,7]
[357274394,1743971441742,-4200.0,0.00038496,7]
[357274395,1743971441751,-4200.0,0.00038931,7]
[357274396,1743971441760,-3951.37805852,0.00038934,14]
[357274397,1743971441768,-555.541,0.00039,120]
[357274398,1743971441778,-1747.88875037,0.00039,120]
[357274399,1743971441787,-4200.0,0.00039013,7]
[357274400,1743971441796,-500.0,0.00039121,7]
[357274401,1743971441805,-4200.0,0.00039171,7]
[357274402,1743971441814,-4200.0,0.00039315,7]
[357274403,1743971441823,-2000.0,0.000395,15]
[357274404,1743971441832,-2000.0,0.000395,15]
[357274405,1743971441841,-2000.0,0.000395,15]
[357274406,1743971441857,-2000.0,0.000395,15]
[357274407,1743971441872,-2975.0,0.0003951,2]
[357274408,1743971441882,-277.35679052,0.00039562,2]
[357274409,1743971441892,-3951.37805852,0.00039659,15]
[357274410,1743971441902,-500.0,0.00039762,7]
[357274411,1743971441913,-5054.24000008,0.0003989,120]
[357274412,1743971441923,-646828.64572663,0.0004,60]
[357274413,1743971441933,-169314.1806037,0.0004,120]
[357274414,1743971441943,-151.0,0.0004,14]
[357274415,1743971441953,-14838.04182596,0.0004,120]
[357274416,1743971441963,-151.0,0.0004,14]
[357274417,1743971441974,-151.0,0.0004,14]
[357274418,1743971441984,-151.0,0.0004,14]
[357274419,1743971441994,-151.0,0.0004,14]
[357274420,1743971442004,-12384.95866481,0.0004,30]
[357274421,1743971442024,-552.29912963,0.0004,30]
[357274422,1743971442036,-7962.74206408,0.0004,30]
[357274423,1743971442049,-3647.58803284,0.0004,30]
[357274424,1743971442062,-64913.76489089,0.0004,30]
[357274425,1743971442072,-151.0,0.0004,14]
[357274426,1743971442082,-9122.69276189,0.0004,30]
[357274427,1743971442092,-151.0,0.0004,14]
[357274428,1743971442102,-151.0,0.0004,14]
[357274429,1743971442112,-151.0,0.0004,14]
[357274430,1743971442122,-151.0,0.0004,14]
[357274431,1743971442131,-151.0,0.0004,14]
[357274432,1743971442141,-281.869732,0.0004,14]
[357274433,1743971442151,-153.24147409,0.0004001,14]
[357274434,1743971442161,-4200.0,0.00040152,30]
[357274435,1743971442171,-2254.0,0.00040287,2]
[357274436,1743971442181,-401.0,0.00040287,2]
[357274437,1743971442190,-3951.37805852,0.00040383,15]
[357274438,1743971442200,-4200.0,0.00040425,30]
[357274439,1743971442210,-287.61899177,0.00040931,2]
[357274440,1743971442227,-1500.0,0.00040971,2]
[357274441,1743971442237,-1500.0,0.00040971,5]
[357274442,1743971442247,-172.988948,0.00041096,2]
[357274443,1743971442258,-167.43551359,0.00041096,2]
[357274444,1743971442268,-3951.37805852,0.00041107,16]
[357274445,1743971442277,-2036.63157073,0.00041128,30]
[357274446,1743971442407,-500.0,0.00025478,2]
[357274447,1743971442418,-445.80357539,0.00025478,2]
[357274448,1743971442428,-500.0,0.00025478,2]
[357274449,1743971442438,-500.0,0.00025478,2]
[357274450,1743971442448,-500.0,0.00025478,2]
[357274451,1743971442457,-500.0,0.00025478,2]
[357274452,1743971442468,-500.0,0.00025478,2]
[357274453,1743971442485,-595.57713029,0.00025478,2]
[357274454,1743971442495,-500.0,0.00025478,2]
[357274455,1743971442506,-641.8617704,0.00025478,2]
[357274456,1743971442516,-500.0,0.00025478,2]
[357274457,1743971442526,-500.0,0.00025478,2]
[357274458,1743971442537,-500.0,0.00025478,2]
[357274459,1743971442547,-500.0,0.00025478,2]
[357274460,1743971442558,-500.0,0.00025478,2]
[357274461,1743971442569,-500.0,0.00025478,2]
[357274462,1743971442580,-500.0,0.00025478,2]
[357274463,1743971442591,-500.0,0.00025478,2]
[357274464,1743971442601,-500.0,0.00025478,2]
[357274465,1743971442611,-155.0,0.00033,2]
[357274466,1743971442621,-155.0,0.00033151,2]
[357274467,1743971442631,-155.0,0.00034521,2]
[357274468,1743971442640,-155.0,0.00036247,2]
[357274469,1743971442651,-166.0,0.00038356,2]
[357274470,1743971442662,-2163.36842927,0.00041128,30]
[357274471,1743971442671,-155.19,0.000412,31]
[357274472,1743971442681,-155.19,0.000412,31]
[357274473,1743971442691,-155.19,0.000412,31]
[357274474,1743971442702,-155.19,0.000412,31]
[357274476,1743971442712,-155.19,0.000412,31]
[357274478,1743971442722,-155.19,0.000412,31]
[357274479,1743971442735,-1000.0,0.00041211,120]
[357274480,1743971442745,-155.0,0.00041425,90]
[357274481,1743971442756,-3951.37805852,0.00041831,16]
[357274483,1743971442766,-1000.0,0.00041971,10]
[357274484,1743971442776,-1500.0,0.00041971,10]
[357274485,1743971442786,-512.95706276,0.00041971,10]
[357274486,1743971442796,-1004.11579989,0.00041971,10]
[357274487,1743971442806,-1500.0,0.00041971,10]
[357274488,1743971442817,-2002.02,0.00042,120]
[357274489,1743971442827,-14055.10489585,0.00042,30]
[357274490,1743971442837,-298.26089446,0.000423,2]
[357274491,1743971442847,-999.99999999,0.000425,120]
[357274492,1743971442858,-3951.37805852,0.00042555,17]
[357274493,1743971442869,-4200.0,0.00042579,30]
[357274494,1743971442880,-4200.0,0.00042618,30]
[357274495,1743971442890,-4200.0,0.00042732,30]
[357274497,1743971442901,-269.431972,0.00042732,15]
[357274499,1743971442911,-1500.0,0.00042771,10]
[357274501,1743971442920,-503.86829957,0.00042771,10]
[357274503,1743971442930,-1500.0,0.00042771,10]
[357274504,1743971442942,-1500.0,0.00042771,10]
[357274505,1743971442953,-1000.0,0.00042771,10]
[357274506,1743971442963,-500.0,0.00042771,10]
[357274507,1743971442973,-1500.0,0.00042771,10]
[357274508,1743971442989,-1500.0,0.00042771,10]
[357274509,1743971442999,-1000.0,0.00042771,10]
[357274510,1743971443009,-160.0,0.000429,10]
[357274511,1743971443019,-4200.0,0.00042961,30]
[357274513,1743971443029,-500.0,0.00042973,10]
[357274516,1743971443039,-501.45871172,0.00042973,10]
[357274518,1743971443048,-500.0,0.00042973,10]
[357274519,1743971443058,-22567.61433137,0.00043,7]
[357274520,1743971443068,-102014.41660581,0.00043,7]
[357274524,1743971444784,-0.00726357,0.00043,7]
[357274525,1743971445082,-500.0,0.00025478,2]
[357274526,1743971445093,-500.0,0.00025478,2]
[357274527,1743971445102,-500.0,0.00025478,2]
[357274528,1743971445112,-500.0,0.00025478,2]
[357274529,1743971445122,-482.09,0.00025478,2]
[357274557,1743971633124,172.998799,0.00023,10]
[357274560,1743971741554,172.998799,0.00013699,2]
[357274563,1743971822527,-155.0,0.00023072,2]
[357274570,1743971827966,-155.0,0.00023072,2]
[357274578,1743971832135,-155.0,0.00023072,2]
[357274580,1743971832755,-155.0,0.00023072,2]
[357274632,1743972403106,-453.73797994,0.00022972,2]
[357274633,1743972403135,-427.28313656,0.00023205,2]
[357274634,1743972403164,-500.0,0.00023206,2]
[357274635,1743972403192,-2100.0,0.00023269,2]
[357274636,1743972403221,-2100.0,0.00023323,2]
[357274637,1743972403249,-944.0794558,0.00023511,2]
[357274638,1743972403278,-250.0,0.00023941,2]
[357274639,1743972403311,-2100.0,0.00024065,2]
[357274640,1743972403340,-300.0,0.00024075,2]
[357274641,1743972403369,-2100.0,0.00024076,2]
[357274642,1743972403398,-496.155554,0.00024082,2]
[357274643,1743972403426,-1225.8032007,0.00024082,2]
[357274644,1743972454109,-2100.0,0.00024882,2]
[357274645,1743972454132,-3545.58345791,0.000249,5]
[357274646,1743972454153,-500.0,0.00024996,2]
[357274647,1743972454176,-291.3977273,0.00025295,2]
[357274648,1743972454198,-300.0,0.00025364,2]
[357274649,1743972454220,-4834.12308146,0.00025365,2]
[357274650,1743972454242,-758.33202,0.0002537,2]
[357274651,1743972454265,-500.0,0.00025371,2]
[357274652,1743972454287,-500.0,0.00025371,2]
[357274653,1743972454321,-177.28634781,0.00025371,2]
[357274654,1743972454352,-500.0,0.00025371,2]
[357274655,1743972454378,-500.0,0.00025371,2]
[357274656,1743972454405,-500.0,0.00025371,2]
[357274657,1743972454428,-500.0,0.00025371,2]
[357274658,1743972454453,-500.0,0.00025371,2]
[357274659,1743972454476,-291.53018281,0.00025371,2]
[357274660,1743972454498,-451.58076867,0.00025371,2]
[357274661,1743972454522,-500.0,0.00025371,2]
[357274662,1743972454549,-500.0,0.00025371,2]
[357274663,1743972454574,-500.0,0.00025371,2]
[357274664,1743972454598,-500.0,0.00025371,2]
[357274665,1743972454622,-500.0,0.00025371,2]
[357274666,1743972454645,-500.0,0.00025371,2]
[357274667,1743972454669,-500.0,0.00025371,2]
[357274668,1743972454694,-500.0,0.00025371,2]
[357274669,1743972454718,-500.0,0.00025371,2]
[357274670,1743972455020,-500.0,0.00025371,2]
[357274671,1743972455073,-500.0,0.00025371,2]
[357274672,1743972455099,-500.0,0.00025371,2]
[357274673,1743972455123,-500.0,0.00025371,2]
[357274674,1743972455146,-500.0,0.00025371,2]
[357274675,1743972455169,-500.0,0.00025371,2]
[357274676,1743972455192,-500.0,0.00025371,2]
[357274677,1743972455214,-500.0,0.00025371,2]
[357274678,1743972455238,-500.0,0.00025371,2]
[357274679,1743972455277,-500.0,0.00025371,2]
[357274680,1743972455301,-500.0,0.00025371,2]
[357274681,1743972455324,-500.0,0.00025371,2]
[357274682,1743972455348,-500.0,0.00025371,2]
[357274683,1743972455371,-500.0,0.00025371,2]
[357274684,1743972455395,-500.0,0.00025371,2]
[357274685,1743972455418,-500.0,0.00025371,2]
[357274686,1743972455444,-360.59115389,0.00025371,2]
[357274687,1743972455468,-500.0,0.00025371,2]
[357274688,1743972455491,-500.0,0.00025371,2]
[357274689,1743972455514,-500.0,0.00025371,2]
[357274690,1743972455537,-500.0,0.00025371,2]
[357274691,1743972455562,-500.0,0.00025371,2]
[357274692,1743972455588,-500.0,0.00025371,2]
[357274693,1743972455612,-500.0,0.00025371,2]
[357274694,1743972455638,-500.0,0.00025371,2]
[357274695,1743972455662,-500.0,0.00025371,2]
[357274696,1743972455685,-500.0,0.00025371,2]
[357274697,1743972455708,-500.0,0.00025371,2]
[357274698,1743972455732,-500.0,0.00025371,2]
[357274699,1743972455755,-500.0,0.00025371,2]
[357274700,1743972455779,-500.0,0.00025371,2]
[357274701,1743972455802,-500.0,0.00025371,2]
[357274702,1743972455826,-500.0,0.00025371,2]
[357274703,1743972455850,-500.0,0.00025371,2]
[357274704,1743972455872,-500.0,0.00025371,2]
[357274705,1743972455894,-500.0,0.00025371,2]
[357274706,1743972455915,-500.0,0.00025371,2]
[357274707,1743972455937,-500.0,0.00025371,2]
[357274708,1743972455958,-500.0,0.00025371,2]
[357274709,1743972455980,-500.0,0.00025371,2]
[357274710,1743972456002,-500.0,0.00025371,2]
[357274711,1743972456024,-500.0,0.00025371,2]
[357274712,1743972456046,-500.0,0.00025371,2]